bitfinex/quotes_ETHUSD_20240811
["timestamp","ask_amount","ask_price","bid_price","bid_amount"]
[1723395138081,2.65586,2635.7,2635.5,0.095]
[1723395138549,2.921206,2635.9,2635.5,0.095]
[1723395138716,2.65577,2635.8,2635.5,0.095]
[1723395138930,2.65592,2635.7,2635.3,0.095]
[1723395139542,2.65614,2635.4,2635.3,0.095]
[1723395139762,2.65614,2635.4,2635.1,0.095]
[1723395139763,2.65634,2635.2,2635.1,0.095]
[1723395140583,2.65606,2635.5,2635.1,0.095]
[1723395140584,2.65609,2635.5,2635.1,0.095]
[1723395140842,0.639306,2635.4,2635.1,0.095]
[1723395141063,0.639306,2635.4,2634.2,2.65733]
[1723395141064,2.65624,2635.3,2634.5,0.095]
[1723395141206,2.65663,2635.0,2634.5,0.095]
[1723395141410,2.65675,2634.8,2634.5,0.095]
[1723395141608,2.65665,2634.9,2634.5,0.095]
[1723395141834,2.65692,2634.7,2634.5,0.095]
[1723395142018,7.27,2635.2,2634.5,0.095]
[1723395142251,2.6563,2635.3,2634.5,0.095]
[1723395142252,2.65688,2634.7,2634.5,0.095]
[1723395142616,2.65694,2634.6,2634.5,0.095]
[1723395143510,2.65694,2634.6,2633.8,2.65773]
[1723395143511,2.65694,2634.6,2634.3,0.095]
[1723395143750,2.65715,2634.4,2634.3,0.095]
[1723395143956,2.65715,2634.4,2634.3,0.645]
[1723395144169,0.265666,2634.8,2634.0,0.095]
[1723395144170,2.65745,2634.1,2634.0,0.095]
[1723395144459,2.65755,2634.0,2633.8,0.095]
[1723395144614,2.65765,2633.9,2633.8,0.095]
[1723395144965,2.65785,2633.7,2633.6,0.095]
[1723395145117,2.65785,2633.7,2633.4,0.095]
[1723395145317,2.65796,2633.6,2633.4,0.095]
[1723395145819,0.531488,2634.1,2633.4,0.095]
[1723395145820,2.65767,2633.9,2633.4,0.095]
[1723395146159,0.531488,2634.1,2633.1,0.095]
[1723395146160,1.0458888,2634.0,2633.1,0.095]
[1723395146350,2.65823,2633.4,2633.1,0.095]
[1723395146665,1.0458888,2634.0,2632.9,0.095]
[1723395146666,2.65836,2633.2,2632.9,0.095]
[1723395146815,2.65856,2633.0,2632.7,3.89335051]
[1723395147015,2.266,2633.5,2633.2,0.095]
[1723395147263,19.87,2634.6,2633.7,0.095]
[1723395147264,9.536,2634.2,2633.7,0.095]
[1723395147474,2.266,2634.2,2633.7,0.095]
[1723395147760,2.266,2634.2,2633.9,0.095]
[1723395147959,2.65711,2634.5,2633.9,0.095]
[1723395148120,4.289209,2634.5,2633.9,0.095]
[1723395148322,1.632099,2634.5,2633.9,0.095]
[1723395148629,1.632099,2634.5,2633.5,0.095]
[1723395148630,2.65763,2634.0,2633.5,0.095]
[1723395148816,1.632099,2634.5,2633.5,0.095]
[1723395148817,2.65775,2633.8,2633.5,0.095]
[1723395149023,2.65795,2633.6,2633.5,0.095]
[1723395149223,2.65795,2633.6,2633.3,0.095]
[1723395149657,2.65812,2633.5,2633.3,0.095]
[1723395149844,2.65816,2633.4,2633.1,0.095]
[1723395150049,2.65816,2633.4,2632.9,0.095]
[1723395150050,2.65832,2633.3,2632.9,0.095]
[1723395150250,2.266,2633.7,2633.1,0.095]
[1723395150559,7.27,2633.8,2632.7,3.79835051]
[1723395150560,7.27,2633.8,2633.4,0.095]
[1723395150918,9.92784,2633.8,2633.4,0.095]
[1723395151120,2.65802,2633.6,2633.2,0.095]
[1723395151422,2.65802,2633.6,2633.1,0.095]
[1723395151646,10.920574,2633.8,2632.9,3.095]
[1723395151968,10.920574,2633.8,2632.9,0.095]
[1723395151969,2.65855,2633.1,2632.9,0.095]
[1723395152528,2.65855,2633.1,2632.7,3.89335051]
[1723395152862,2.65831,2633.3,2632.7,3.89335051]
[1723395153045,2.65831,2633.3,2632.9,0.095]
[1723395153260,2.6581,2633.5,2632.9,0.095]
[1723395153565,1.0920574,2633.7,2632.9,0.095]
[1723395153566,2.65842,2633.2,2632.9,0.095]
[1723395153767,0.26581,2633.4,2632.9,0.095]
[1723395154275,2.65795,2633.6,2633.1,0.095]
[1723395154448,7.27,2633.8,2633.3,0.095]
[1723395154784,2.65786,2633.7,2633.3,0.095]
[1723395155241,3.650646,2633.7,2633.3,0.095]
[1723395155769,2.65806,2633.5,2633.3,0.095]
[1723395156145,3.650646,2633.7,2633.3,0.095]
[1723395156146,2.65797,2633.6,2633.3,0.095]
[1723395156473,3.650646,2633.7,2633.3,0.095]
[1723395156840,7.27,2633.8,2633.3,2.7532]
[1723395157469,9.92776,2633.8,2633.3,0.095]
[1723395157776,2.65776,2633.8,2633.3,0.095]
[1723395158290,2.65785,2633.7,2633.3,0.095]
[1723395158495,2.6577,2633.9,2633.3,0.095]
[1723395158784,7.27,2634.2,2633.0,0.095]
[1723395158785,2.266,2633.7,2633.0,0.095]
[1723395158991,2.266,2633.7,2633.2,2.75327]
[1723395159145,2.266,2633.7,2633.4,0.095]
[1723395159339,2.65758,2634.0,2633.4,0.095]
[1723395159578,4.289778,2634.0,2633.4,0.095]
[1723395161061,6.947408,2634.0,2633.4,2.75313]
[1723395161378,2.65772,2633.9,2633.4,0.095]
[1723395161683,3.3524698,2633.9,2633.4,0.095]
[1723395162190,1.5296089,2634.4,2633.9,2.65759]
[1723395162347,2.65708,2634.5,2634.0,0.095]
[1723395162546,1.258407,2634.4,2634.0,0.095]
[1723395162879,6.572777,2634.4,2634.0,0.095]
[1723395163084,2.65741,2634.2,2634.0,0.095]
[1723395163282,5.31483,2634.2,2634.0,0.095]
[1723395163473,2.65745,2634.1,2634.0,0.095]
[1723395164069,2.65741,2634.2,2634.0,0.095]
[1723395164269,2.65745,2634.1,2634.0,0.095]
[1723395165296,2.65775,2633.8,2633.5,0.645]
[1723395165610,5.31526,2634.0,2633.5,0.645]
[1723395165792,2.65768,2633.9,2633.5,0.645]
[1723395165977,2.65793,2633.7,2633.3,0.095]
[1723395166372,5.31585,2633.7,2633.3,0.095]
[1723395166555,2.65821,2633.4,2633.1,0.095]
[1723395166756,2.658,2633.6,2633.1,0.095]
[1723395166961,0.531585,2633.7,2633.3,2.75325]
[1723395167192,2.65779,2633.8,2633.3,2.75325]
[1723395167398,2.65745,2634.1,2633.7,0.095]
[1723395167693,19.55,2634.2,2633.9,0.095]
[1723395167878,2.65717,2634.4,2633.9,0.095]
[1723395168200,7.27,2634.7,2633.9,0.095]
[1723395168201,7.27,2634.7,2634.4,0.095]
[1723395169477,7.27,2634.7,2634.0,0.645]
[1723395169478,2.65695,2634.6,2634.0,0.645]
[1723395169654,2.65731,2634.3,2634.0,0.095]
[1723395169859,2.65731,2634.3,2633.8,0.095]
[1723395170061,7.27,2634.7,2633.3,2.65819]
[1723395170062,2.65746,2634.1,2633.6,0.095]
[1723395170295,0.265731,2634.2,2634.0,0.095]
[1723395170509,2.65712,2634.5,2634.0,0.095]
[1723395170662,2.65711,2634.5,2634.0,0.095]
[1723395170992,2.65715,2634.4,2634.0,0.095]
[1723395171172,2.65725,2634.3,2634.0,0.095]
[1723395171372,0.727,2634.6,2633.7,0.095]
[1723395171373,2.65736,2634.2,2633.7,0.095]
[1723395171572,2.65756,2634.0,2633.7,0.095]
[1723395171990,0.531492,2634.0,2633.5,0.095]
[1723395172201,2.65766,2633.9,2633.5,0.095]
[1723395172793,5.31503,2634.1,2633.5,2.75303]
[1723395173017,2.65756,2634.0,2633.5,0.095]
[1723395173316,2.6575,2634.1,2633.5,0.095]
[1723395173490,5.31502,2634.1,2633.6,2.65795]
[1723395173815,1.494292,2634.1,2633.5,0.095]
[1723395174227,2.65782,2633.8,2633.3,0.095]
[1723395174519,2.65788,2633.7,2633.4,0.55]
[1723395174828,2.65812,2633.5,2633.1,0.095]
[1723395175116,7.27,2634.0,2633.3,0.095]
[1723395175323,2.65785,2633.7,2633.3,0.095]
[1723395175493,2.6578,2633.8,2633.1,3.0]
[1723395175494,2.65806,2633.5,2633.1,0.095]
[1723395175690,2.65792,2633.7,2633.3,0.095]
[1723395175904,0.727,2633.9,2633.1,0.095]
[1723395176104,7.27,2634.0,2633.3,0.095]
[1723395176105,3.45751,2633.8,2633.3,0.095]
[1723395176420,6.11533,2633.8,2633.3,0.095]
[1723395176920,2.65797,2633.6,2633.1,0.095]
[1723395177101,2.65791,2633.7,2633.3,0.095]
[1723395177295,2.658,2633.6,2633.3,0.095]
[1723395177696,3.269453,2633.7,2633.3,0.095]
[1723395177898,2.658,2633.6,2633.1,0.095]
[1723395178280,0.611543,2633.7,2633.1,0.095]
[1723395178483,0.611543,2633.7,2633.2,2.65829]
[1723395178484,3.269413,2633.7,2633.2,2.65829]
[1723395178825,5.927323,2633.7,2633.2,2.65829]
[1723395179125,3.269413,2633.7,2633.2,2.65829]
[1723395179698,5.927333,2633.7,2633.2,2.65829]
[1723395179903,2.65796,2633.6,2633.1,0.095]
[1723395180216,2.65809,2633.5,2633.1,0.095]
[1723395180421,2.65818,2633.4,2633.1,0.095]
[1723395181481,2.65831,2633.3,2632.9,0.095]
[1723395182190,5.31666,2633.3,2632.9,0.095]
[1723395182390,2.65831,2633.3,2632.9,0.095]
[1723395182912,5.31664,2633.3,2632.9,0.095]
[1723395183112,2.65845,2633.2,2632.9,0.095]
[1723395183298,2.65837,2633.2,2632.9,0.095]
[1723395183901,3.189964,2633.3,2632.5,0.095]
[1723395184122,2.65872,2632.9,2632.5,0.095]
[1723395184429,2.65872,2632.9,2631.9,0.19548336]
[1723395184430,2.65913,2632.5,2632.3,0.095]
[1723395184629,2.65929,2632.3,2632.1,0.095]
[1723395184838,2.65937,2632.2,2632.1,0.095]
[1723395184996,9.92868,2632.9,2632.1,0.095]
[1723395185335,2.65922,2632.4,2632.0,0.095]
[1723395185732,2.65922,2632.4,2632.2,0.095]
[1723395185936,2.65922,2632.4,2632.0,0.095]
[1723395185937,2.65939,2632.2,2632.0,0.095]
[1723395186400,2.65924,2632.4,2632.0,0.095]
[1723395186934,9.92903,2632.6,2632.2,0.095]
[1723395187141,12.58808,2632.6,2632.2,0.095]
[1723395187302,9.92902,2632.6,2632.2,0.095]
[1723395187505,2.65915,2632.5,2632.0,0.095]
[1723395187716,8.3621888,2632.6,2632.0,0.095]
[1723395188044,2.65947,2632.1,2632.0,0.095]
[1723395188799,2.65947,2632.1,2631.8,0.095]
[1723395189041,2.65967,2631.9,2631.8,0.095]
[1723395189210,2.6598,2631.8,2631.6,0.095]
[1723395189410,2.65967,2631.9,2631.6,0.095]
[1723395189411,2.65987,2631.7,2631.6,0.095]
[1723395189612,2.65987,2631.7,2631.4,0.095]
[1723395190945,2.65999,2631.6,2631.4,0.095]
[1723395193241,2.66007,2631.5,2631.4,0.095]
[1723395193439,2.65999,2631.6,2631.4,0.095]
[1723395193661,20.6421888,2632.6,2632.1,2.65947]
[1723395193801,2.65849,2633.1,2632.4,0.095]
[1723395193802,9.92873,2632.9,2632.4,0.095]
[1723395194004,7.27,2632.9,2632.7,0.095]
[1723395194268,2.97988974,2633.0,2632.7,0.095]
[1723395194402,0.32132974,2633.0,2632.7,0.095]
[1723395194947,0.32132974,2633.0,2632.2,0.55]
[1723395194948,0.32132974,2633.0,2632.5,0.095]
[1723395194949,2.65892,2632.7,2632.5,0.095]
[1723395195443,2.65848,2633.1,2632.7,0.095]
[1723395195444,2.65852,2633.1,2632.7,0.095]
[1723395196538,3.885172,2633.1,2632.7,0.095]
[1723395196740,2.65872,2632.9,2632.5,0.095]
[1723395197321,5.31746,2632.9,2632.5,0.095]
[1723395197540,2.65877,2632.8,2632.5,0.095]
[1723395197740,2.65872,2632.9,2632.3,0.095]
[1723395197916,2.65898,2632.6,2632.3,0.095]
[1723395198447,1.226652,2633.1,2632.7,0.095]
[1723395198665,4.99638,2633.2,2632.7,0.095]
[1723395199746,7.65482,2633.2,2632.7,0.095]
[1723395199928,4.99638,2633.2,2632.7,0.095]
[1723395200665,2.65857,2633.0,2632.7,0.095]
[1723395201149,3.158227,2633.0,2632.7,0.095]
[1723395201461,5.31763,2632.8,2632.5,0.095]
[1723395201652,2.65881,2632.8,2632.5,0.095]
[1723395201950,2.65896,2632.7,2632.3,0.095]
[1723395202162,2.65912,2632.5,2632.3,0.095]
[1723395202718,2.338,2633.2,2632.1,0.095]
[1723395202719,9.92869,2632.9,2632.1,0.095]
[1723395203221,2.65948,2632.1,2631.9,0.095]
[1723395203735,2.65932,2632.3,2631.9,0.095]
[1723395203941,12.26711,2632.5,2631.9,0.095]
[1723395204152,7.27,2632.5,2632.1,0.095]
[1723395204331,7.27,2632.5,2632.1,2.75447]
[1723395205622,9.92906,2632.5,2632.1,2.75447]
[1723395205822,2.65917,2632.4,2632.1,0.095]
[1723395206238,9.92906,2632.5,2632.1,0.095]
[1723395206239,7.27,2632.5,2632.1,0.095]
[1723395206436,7.27,2632.5,2632.1,2.7544]
[1723395206727,9.92907,2632.5,2632.1,0.095]
[1723395206922,2.65917,2632.4,2632.1,0.095]
[1723395207647,2.65927,2632.3,2632.1,0.095]
[1723395208451,7.27,2632.5,2632.3,0.095]
[1723395208761,3.737,2633.0,2631.4,3.0]
[1723395208762,4.99671,2632.9,2632.7,0.095]
[1723395208961,4.99671,2632.9,2632.2,0.55]
[1723395208962,7.27,2633.1,2632.3,0.095]
[1723395209173,2.65917,2632.4,2632.3,0.095]
[1723395209341,2.65917,2632.4,2632.1,0.095]
[1723395209342,2.65937,2632.2,2632.1,0.095]
[1723395209560,2.65915,2632.5,2632.1,0.095]
[1723395209885,3.917958,2632.5,2632.3,0.095]
[1723395210793,2.65915,2632.5,2632.3,0.095]
[1723395211644,2.65915,2632.5,2632.1,0.095]
[1723395211879,2.65932,2632.3,2632.1,0.095]
[1723395212484,5.31868,2632.3,2632.1,0.095]
[1723395212660,2.65937,2632.2,2632.1,0.095]
[1723395213052,2.65927,2632.3,2632.1,0.095]
[1723395213466,2.65937,2632.2,2632.1,0.095]
[1723395213857,5.3186,2632.3,2632.1,0.095]
[1723395214144,5.3186,2632.3,2631.8,0.095]
[1723395214145,2.65952,2632.1,2631.8,0.095]
[1723395214350,2.65967,2631.9,2631.8,0.095]
[1723395214578,2.65967,2631.9,2631.6,0.095]
[1723395214783,2.65951,2632.1,2631.6,0.095]
[1723395214991,2.65962,2632.0,2631.6,0.095]
[1723395215788,2.65967,2631.9,2631.6,0.095]
[1723395216090,2.65967,2631.9,2631.4,3.0]
[1723395216091,7.27,2632.4,2632.0,0.095]
[1723395216384,7.27,2632.4,2632.3,0.095]
[1723395216592,7.27,2632.4,2631.5,2.73599811]
[1723395216593,2.65932,2632.3,2632.1,0.095]
[1723395216887,2.65937,2632.2,2632.1,0.095]
[1723395217487,7.27,2632.4,2632.1,0.095]
[1723395217674,7.27,2632.8,2632.5,0.095]
[1723395217877,2.65869,2632.9,2632.5,0.095]
[1723395218173,5.02566,2633.0,2632.7,0.095]
[1723395218988,2.65867,2632.9,2632.7,0.095]
[1723395219572,3.38553,2633.1,2632.9,0.095]
[1723395219794,0.727,2633.1,2632.9,0.095]
[1723395219953,7.27,2633.2,2633.1,0.095]
[1723395220149,2.65836,2633.2,2632.8,0.095]
[1723395220484,0.265836,2633.2,2632.6,0.095]
[1723395220657,2.65881,2632.8,2632.6,0.095]
[1723395220858,2.65886,2632.7,2632.6,0.095]
[1723395221580,2.65886,2632.7,2632.1,2.65944]
[1723395221581,2.65897,2632.6,2632.4,0.095]
[1723395221787,2.65883,2632.8,2632.4,0.095]
[1723395221947,2.3671,2633.0,2632.7,0.095]
[1723395221948,0.502569,2632.9,2632.7,0.095]
[1723395222143,2.65863,2633.0,2632.7,0.095]
[1723395222688,2.65876,2632.8,2632.7,0.095]
[1723395222991,2.65867,2632.9,2632.5,0.095]
[1723395222992,2.65888,2632.7,2632.5,0.095]
[1723395223685,2.65896,2632.6,2632.5,0.095]
[1723395223885,2.65907,2632.5,2632.3,0.095]
[1723395224251,2.65888,2632.7,2632.5,0.095]
[1723395224481,7.27,2632.9,2632.3,0.095]
[1723395224482,2.65896,2632.6,2632.3,0.095]
[1723395224796,2.65911,2632.5,2632.3,0.095]
[1723395225156,2.65903,2632.6,2632.3,0.095]
[1723395225593,0.727,2632.8,2632.3,0.095]
[1723395225594,2.65908,2632.5,2632.3,0.095]
[1723395226584,2.65917,2632.4,2632.3,0.095]
[1723395227491,2.65908,2632.5,2632.3,0.095]
[1723395227492,5.31822,2632.5,2632.3,0.095]
[1723395227698,2.65917,2632.4,2632.3,0.095]
[1723395228239,5.31834,2632.4,2632.3,0.095]
[1723395228362,6.094344,2632.4,2632.3,0.095]
[1723395229075,3.435174,2632.4,2632.3,0.095]
[1723395230460,6.094344,2632.4,2632.3,0.095]
[1723395235905,2.65957,2632.0,2631.9,0.095]
[1723395236071,5.31914,2632.0,2631.9,0.095]
[1723395238404,2.65977,2631.8,2631.7,0.095]
[1723395240821,2.6594,2632.2,2631.5,0.095]
[1723395241020,2.65979,2631.8,2631.3,0.095]
[1723395241376,5.32036,2631.4,2631.3,0.095]
[1723395243193,2.66018,2631.4,2631.3,0.095]
[1723395245513,5.32036,2631.4,2631.3,0.095]
[1723395245739,5.32036,2631.4,2631.0,0.1209824]
[1723395245740,2.66018,2631.4,2631.1,0.095]
[1723395245919,2.66038,2631.2,2631.1,0.095]
[1723395246223,5.32076,2631.2,2631.1,0.095]
[1723395248020,2.66048,2631.1,2631.0,0.1209824]
[1723395248627,5.32096,2631.1,2631.0,0.1209824]
[1723395249244,5.853056,2631.1,2631.0,0.1209824]
[1723395249566,8.513536,2631.1,2631.0,0.1209824]
[1723395249709,11.174016,2631.1,2631.0,0.1209824]
[1723395250830,13.582216,2631.1,2631.0,0.1209824]
[1723395251010,14.132216,2631.1,2631.0,0.1209824]
[1723395252447,5.32258,2630.3,2630.2,0.095]
[1723395254351,2.66149,2630.1,2630.0,0.095]
[1723395254740,5.32298,2630.1,2630.0,0.095]
[1723395254956,5.32298,2630.1,2629.9,0.19563203]
[1723395254957,2.66159,2630.0,2629.9,0.19563203]
[1723395255139,2.66159,2630.0,2629.4,2.6622]
[1723395255140,2.6617,2629.9,2629.4,2.6622]
[1723395255461,2.6617,2629.9,2629.8,0.095]
[1723395256465,5.3234,2629.9,2629.8,0.095]
[1723395257629,5.85574,2629.9,2629.8,0.095]
[1723395259317,2.6619,2629.7,2629.6,0.095]
[1723395259514,2.6619,2629.7,2629.4,0.095]
[1723395259752,2.662,2629.6,2629.5,0.19566179]
[1723395259923,5.324,2629.6,2629.5,0.19566179]
[1723395260123,0.53234,2629.9,2629.6,0.095]
[1723395260325,2.66135,2630.3,2629.9,0.095]
[1723395260551,2.6615,2630.1,2629.9,0.095]
[1723395260765,5.32265,2630.3,2629.9,0.095]
[1723395260940,7.095745,2630.3,2629.9,0.095]
[1723395261145,2.66159,2630.0,2629.9,0.095]
[1723395261446,2.66151,2630.1,2629.9,0.095]
[1723395261447,2.6615,2630.1,2629.9,0.095]
[1723395261658,2.66159,2630.0,2629.9,0.095]
[1723395262376,2.6614,2630.2,2629.9,0.095]
[1723395262542,2.6615,2630.1,2629.9,0.095]
[1723395263262,2.66159,2630.1,2629.9,0.095]
[1723395263765,2.66159,2630.0,2629.9,0.095]
[1723395264164,2.66176,2629.9,2629.7,0.095]
[1723395264369,2.66161,2630.0,2629.7,0.095]
[1723395264730,0.9572705,2630.2,2629.7,0.095]
[1723395264964,2.66178,2629.9,2629.7,0.095]
[1723395265262,2.66177,2629.9,2629.7,0.095]
[1723395265970,5.32358,2629.8,2629.7,0.095]
[1723395266140,2.6619,2629.7,2629.6,0.19565434]
[1723395266350,5.3238,2629.7,2629.6,0.19565434]
[1723395266573,7.732,2629.7,2629.6,0.19565434]
[1723395266935,10.3939,2629.7,2629.6,0.19565434]
[1723395269544,7.732,2629.7,2629.6,0.19565434]
[1723395270048,8.8314358,2629.7,2629.6,0.19565434]
[1723395270643,11.4689358,2629.7,2629.6,0.19565434]
[1723395270954,11.4689358,2629.7,2628.7,0.095]
[1723395270955,2.66275,2628.9,2628.7,0.095]
[1723395271571,2.66258,2629.1,2628.7,0.095]
[1723395271754,2.66247,2629.2,2628.9,0.095]
[1723395272088,9.93232,2629.3,2628.9,0.095]
[1723395272290,9.93232,2629.3,2629.2,0.095]
[1723395272291,9.9323,2629.3,2629.2,0.095]
[1723395272582,6.1451858,2629.7,2629.4,0.095]
[1723395272783,2.3838,2629.7,2629.4,0.095]
[1723395273151,2.6621,2629.5,2629.4,0.095]
[1723395274071,6.28415,2629.7,2629.4,0.095]
[1723395274277,2.6621,2629.5,2629.4,0.095]
[1723395274588,5.3242,2629.5,2629.4,0.095]
[1723395274784,6.218838,2629.5,2629.4,0.095]
[1723395276381,2.66233,2629.3,2629.1,0.095]
[1723395276751,2.6624,2629.2,2629.1,0.095]
[1723395277050,2.66233,2629.3,2629.1,0.095]
[1723395277875,2.6624,2629.2,2629.1,0.095]
[1723395278296,2.66233,2629.3,2629.1,0.095]
[1723395278588,5.32476,2629.3,2629.1,0.095]
[1723395278804,2.6624,2629.2,2629.1,0.095]
[1723395279674,5.3248,2629.2,2629.1,0.095]
[1723395280276,2.6626,2629.0,2628.9,0.095]
[1723395280484,5.857711,2629.0,2628.9,0.095]
[1723395280653,5.3252,2629.0,2628.9,0.095]
[1723395282487,2.66285,2628.8,2628.6,0.095]
[1723395282693,2.66291,2628.7,2628.6,0.095]
[1723395283098,5.32572,2628.8,2628.6,0.095]
[1723395283295,2.66284,2628.8,2628.6,0.095]
[1723395283588,2.66291,2628.7,2628.6,0.095]
[1723395284199,2.66268,2629.0,2628.6,0.095]
[1723395284360,2.66278,2628.9,2628.6,0.095]
[1723395284581,2.66268,2629.0,2628.5,0.19573622]
[1723395284582,2.66301,2628.6,2628.5,0.19573622]
[1723395284785,5.32602,2628.6,2628.5,0.19573622]
[1723395284993,6.363285,2628.6,2628.5,0.19573622]
[1723395286118,3.700275,2628.6,2628.5,0.19573622]
[1723395286422,2.66301,2628.6,2628.5,0.19573622]
[1723395287289,5.32602,2628.6,2628.5,0.19573622]
[1723395287519,2.66301,2628.6,2628.5,0.19573622]
[1723395287924,2.66296,2628.7,2628.5,0.19573622]
[1723395288132,5.32602,2628.6,2628.5,0.19573622]
[1723395288427,10.71903,2628.6,2628.5,0.19573622]
[1723395290525,13.67453,2628.6,2628.5,0.19573622]
[1723395290885,16.33754,2628.6,2628.5,0.19573622]
[1723395292029,13.67453,2628.6,2628.5,0.19573622]
[1723395292234,15.1197506,2628.6,2628.5,0.19573622]
[1723395292892,17.7827606,2628.6,2628.5,0.19573622]
[1723395293092,10.65244,2628.5,2628.4,0.1258174]
[1723395293291,13.60794,2628.5,2628.4,0.1258174]
[1723395293604,19.08532466,2628.5,2628.4,7.4e-06]
[1723395294737,16.42221466,2628.5,2628.4,7.4e-06]
[1723395294894,19.08532466,2628.5,2628.4,7.4e-06]
[1723395295094,16.42221466,2628.5,2628.4,7.4e-06]
[1723395295938,19.08532466,2628.5,2628.4,7.4e-06]
[1723395296426,16.42221466,2628.5,2628.4,7.4e-06]
[1723395297512,2.66402,2627.6,2627.5,0.095]
[1723395299138,2.66398,2627.7,2627.5,0.095]
[1723395299590,2.66402,2627.6,2627.3,0.095]
[1723395299796,2.66419,2627.5,2627.3,0.095]
[1723395300441,1.0,2628.0,2627.5,0.095]
[1723395300645,2.66397,2627.7,2627.5,0.095]
[1723395300993,2.66402,2627.6,2627.5,0.095]
[1723395301228,2.66396,2627.7,2627.5,0.095]
[1723395301496,2.66402,2627.6,2627.3,0.095]
[1723395302209,2.4055,2627.8,2627.3,0.095]
[1723395302412,2.66419,2627.5,2627.3,0.095]
[1723395302609,2.4055,2627.8,2627.0,0.095]
[1723395302610,2.66453,2627.1,2627.0,0.095]
[1723395303011,2.66443,2627.2,2627.0,0.095]
[1723395304337,2.66428,2627.4,2627.0,0.095]
[1723395304734,2.66438,2627.3,2627.0,0.095]
[1723395305098,2.66438,2627.3,2626.8,2.66478]
[1723395305099,2.66397,2627.7,2627.4,0.095]
[1723395305494,2.73,2627.6,2627.0,0.095]
[1723395305812,2.66451,2627.2,2627.0,0.095]
[1723395306341,2.6647,2627.0,2626.8,0.095]
[1723395306631,2.6647,2627.0,2626.7,0.095]
[1723395306632,2.66483,2626.9,2626.7,0.095]
[1723395306806,5.39436,2627.3,2626.7,0.095]
[1723395306807,2.66483,2626.8,2626.7,0.095]
[1723395307009,2.66483,2626.8,2626.1,10.14547]
[1723395307010,2.66498,2626.7,2626.5,0.095]
[1723395307238,2.66498,2626.7,2626.1,10.14547]
[1723395307440,2.66504,2626.6,2626.1,10.14547]
[1723395307599,2.66504,2626.6,2626.5,0.095]
[1723395308237,2.66458,2627.1,2626.7,0.095]
[1723395308414,2.66463,2627.0,2626.7,0.095]
[1723395308800,2.66483,2626.8,2626.7,0.095]
[1723395309125,2.66483,2626.8,2626.0,3.0]
[1723395309126,2.66524,2626.4,2626.3,0.095]
[1723395309304,2.6652,2626.5,2626.3,0.095]
[1723395309497,2.66524,2626.4,2626.3,0.095]
[1723395310299,2.6652,2626.5,2626.3,0.095]
[1723395310497,5.16284,2626.6,2626.3,0.095]
[1723395310802,2.66492,2626.8,2626.3,0.095]
[1723395311028,2.66504,2626.6,2626.3,0.095]
[1723395311636,2.66492,2626.8,2626.3,0.095]
[1723395311838,2.73,2627.3,2626.7,0.095]
[1723395312046,2.73,2627.3,2626.9,0.095]
[1723395312047,2.66447,2627.2,2626.9,0.095]
[1723395312545,2.4978,2626.8,2626.0,0.095]
[1723395312704,2.66554,2626.1,2626.0,0.095]
[1723395312898,0.24978,2626.7,2626.0,0.095]
[1723395313103,2.66524,2626.4,2626.0,0.095]
[1723395313414,2.66524,2626.4,2626.2,0.095]
[1723395313615,2.66542,2626.3,2626.2,0.095]
[1723395313994,2.66524,2626.4,2626.2,0.095]
[1723395314549,5.1627,2626.8,2626.4,0.095]
[1723395314715,3.02058,2626.8,2626.2,0.095]
[1723395314901,2.66534,2626.3,2626.2,0.095]
[1723395315100,2.66534,2626.3,2625.9,0.095]
[1723395315101,2.66555,2626.1,2625.9,0.095]
[1723395315303,5.2278,2626.8,2626.3,0.095]
[1723395315304,2.66501,2626.7,2626.3,0.095]
[1723395315527,2.665,2626.7,2626.3,0.095]
[1723395315731,2.66519,2626.5,2626.3,0.095]
[1723395315904,0.51628,2626.6,2626.3,0.095]
[1723395316119,2.4978,2626.8,2626.6,0.095]
[1723395316305,2.4978,2627.1,2626.6,0.095]
[1723395316500,2.66466,2627.0,2626.8,0.095]
[1723395316706,5.39425,2627.4,2626.8,0.095]
[1723395316707,2.66443,2627.2,2626.8,0.095]
[1723395317048,0.779947,2627.7,2627.3,0.095]
[1723395317049,3.443937,2627.7,2627.3,0.095]
[1723395317344,2.66399,2627.7,2627.3,0.095]
[1723395317547,2.4978,2627.9,2627.3,0.095]
[1723395317717,2.66423,2627.4,2627.3,0.095]
[1723395317921,2.66408,2627.6,2627.3,0.095]
[1723395318316,0.789154,2627.8,2627.3,0.095]
[1723395318524,2.66392,2627.7,2627.3,0.095]
[1723395318718,2.66382,2627.8,2627.5,0.095]